bitfinex-derivatives/quotes_ETHF0:USTF0_20241229
["timestamp","ask_amount","ask_price","bid_price","bid_amount"]
[1735456983462,3.2078,3401.7,3401.1,4.60753351]
[1735456983657,0.29454,3401.4,3401.2,0.29455]
[1735456985360,0.29454,3401.4,3401.0,5.25913351]
[1735456985564,0.29454,3401.4,3401.2,0.29454]
[1735456986174,3.2078,3401.7,3401.2,0.29454]
[1735456986359,3.2078,3401.7,3401.1,0.29456]
[1735456986564,0.29455,3401.3,3401.1,0.29456]
[1735456987466,0.29455,3401.3,3401.2,0.29455]
[1735456988772,0.29456,3401.1,3401.0,4.60753351]
[1735456989674,0.29456,3401.1,3400.9,4.90210351]
[1735456989863,0.29456,3401.1,3400.9,4.60753351]
[1735456990067,0.29456,3401.1,3401.0,0.29457]
[1735456990473,0.29457,3401.0,3400.9,4.90210351]
[1735456991569,0.29457,3401.1,3401.0,0.29456]
[1735456993971,0.29457,3401.1,3401.0,0.96916]
[1735456995769,0.29457,3401.1,3401.0,5.57669351]
[1735456997670,0.29457,3401.1,3401.0,4.60753351]
[1735456997870,3.50237,3401.1,3401.0,4.60753351]
[1735456998578,0.29457,3401.0,3400.9,4.60753351]
[1735456999385,3.2078,3401.1,3400.6,4.60753351]
[1735456999578,0.2946,3400.7,3400.6,4.60753351]
[1735457000372,3.94423,3401.1,3400.5,5.52064351]
[1735457000574,0.971,3400.6,3400.5,5.52064351]
[1735457000771,0.971,3400.6,3400.5,4.60753351]
[1735457001180,0.29457,3401.1,3401.0,0.29456]
[1735457001477,0.97097,3401.1,3401.0,0.29456]
[1735457002179,5.5354923,3401.2,3401.1,0.29456]
[1735457002780,0.91576,3401.2,3401.1,0.29456]
[1735457003480,0.29457,3401.1,3401.0,0.29456]
[1735457003680,0.6212,3401.2,3400.9,4.60753351]
[1735457003875,3.2078,3401.3,3401.0,4.60753351]
[1735457004076,3.2078,3401.3,3401.2,0.29455]
[1735457004476,3.2078,3401.3,3401.2,1.62895]
[1735457004775,3.2078,3401.3,3401.2,6.23648351]
[1735457005582,0.97093,3401.5,3401.2,5.94193351]
[1735457005784,0.97093,3401.5,3401.4,0.29454]
[1735457007182,0.97093,3401.5,3401.2,5.94193351]
[1735457007183,0.29454,3401.3,3401.2,4.60753351]
[1735457008283,0.29455,3401.2,3401.1,0.29456]
[1735457008580,0.94785,3401.2,3401.0,0.6623]
[1735457008782,0.6533,3401.2,3400.9,4.60753351]
[1735457008980,0.29457,3401.0,3400.9,4.60753351]
[1735457009383,0.6741,3401.1,3400.8,4.60753351]
[1735457009579,0.29458,3400.9,3400.8,4.60753351]
[1735457010885,0.29458,3400.9,3400.6,6.93304491]
[1735457010886,0.2946,3400.7,3400.6,4.60753351]
[1735457011487,0.9678,3400.7,3400.6,4.60753351]
[1735457012187,0.29463,3400.4,3400.2,4.90217351]
[1735457012380,0.6732,3400.7,3400.2,4.60753351]
[1735457012584,0.29463,3400.3,3400.2,4.60753351]
[1735457013691,0.29465,3400.1,3400.0,3.2078]
[1735457014289,0.93035,3400.1,3400.0,3.2078]
[1735457015283,0.6357,3400.1,3399.7,4.60753351]
[1735457015589,0.29467,3399.8,3399.7,4.60753351]
[1735457015790,0.29467,3399.8,3399.1,0.6152]
[1735457015791,3.2078,3400.0,3399.5,4.60753351]
[1735457015993,3.50249,3399.6,3399.5,4.60753351]
[1735457017592,0.29467,3399.9,3399.3,0.29471]
[1735457017791,3.2078,3400.0,3399.3,0.29471]
[1735457018292,5.57373768,3400.0,3399.1,5.22273351]
[1735457018595,0.29471,3399.4,3399.2,0.29472]
[1735457018797,0.29471,3399.4,3399.1,5.22273351]
[1735457018986,3.2078,3399.6,3399.1,5.51746351]
[1735457019193,0.29472,3399.3,3399.1,5.51746351]
[1735457019792,0.29472,3399.3,3399.1,5.22273351]
[1735457019995,0.29471,3399.4,3399.2,0.29473]
[1735457020487,1.2715,3399.5,3399.1,0.90993]
[1735457020488,0.29472,3399.3,3399.1,0.90993]
[1735457020687,0.29473,3399.2,3399.1,0.6152]
[1735457021099,0.29473,3399.1,3399.0,3.2078]
[1735457021596,0.29473,3399.2,3399.0,3.2078]
[1735457023297,1.2715,3399.5,3399.0,3.2078]
[1735457023601,0.29473,3399.1,3399.0,3.2078]
[1735457025803,0.29475,3399.0,3398.8,4.17396]
[1735457026298,1.2715,3399.5,3398.8,3.8792]
[1735457026497,0.29472,3399.4,3399.1,0.29473]
[1735457027100,0.29472,3399.3,3399.1,0.29473]
[1735457028501,0.29472,3399.3,3399.2,0.6765]
[1735457035210,0.29473,3399.2,3399.0,0.29474]
[1735457035407,0.29474,3399.0,3398.9,0.96705]
[1735457039307,0.29474,3399.1,3399.0,0.29474]
[1735457040507,0.29474,3399.0,3398.9,0.6723]
[1735457040715,0.29474,3399.0,3398.9,0.96705]
[1735457045014,0.29474,3399.1,3399.0,0.29474]
[1735457046107,0.29474,3399.0,3398.9,0.96705]
[1735457046308,0.96924,3399.0,3398.9,0.96705]
[1735457046804,0.96924,3399.0,3398.8,0.6714]
[1735457046805,0.6745,3399.0,3398.8,0.6714]
[1735457047014,0.29475,3398.9,3398.8,0.6714]
[1735457047315,1.57335,3398.9,3398.8,0.6714]
[1735457047711,0.6745,3399.0,3398.8,0.6714]
[1735457047712,0.29475,3399.0,3398.9,0.29474]
[1735457048306,0.29474,3399.1,3399.0,0.29473]
[1735457053317,0.6745,3399.2,3398.8,0.6714]
[1735457053509,0.96923,3399.2,3399.1,0.29473]
[1735457055620,0.29475,3399.0,3398.9,0.29475]
[1735457055816,0.6745,3399.2,3398.8,5.27893351]
[1735457056119,0.29475,3398.9,3398.8,4.90229351]
[1735457056619,0.29475,3398.9,3398.8,0.29476]
[1735457056924,0.29477,3398.8,3398.7,0.29476]
[1735457057122,1.62017,3398.8,3398.7,0.29476]
[1735457057422,1.62017,3398.8,3398.6,7.81533351]
[1735457057423,1.3254,3398.8,3398.6,7.81533351]
[1735457057623,0.29477,3398.7,3398.6,8.11011351]
[1735457057920,0.93347,3398.7,3398.6,10.43562491]
[1735457058524,0.93347,3398.7,3398.6,7.22782491]
[1735457058822,0.6387,3398.7,3398.6,7.22782491]
[1735457059120,0.6387,3398.7,3398.6,13.05795966]
[1735457059319,1.62017,3398.8,3398.6,12.76317966]
[1735457059520,1.62017,3398.8,3398.7,0.29477]
[1735457059719,0.29477,3398.7,3398.6,13.05794966]
[1735457062919,0.29477,3398.7,3398.6,12.76317966]
[1735457063219,0.29477,3398.7,3398.6,10.73877915]
[1735457063723,2.66070768,3398.7,3398.6,10.44399915]
[1735457064829,0.2948,3398.4,3398.3,4.6138644]
[1735457065819,0.6292,3398.6,3398.2,3.2078]
[1735457065820,0.2948,3398.3,3398.2,3.2078]
[1735457066020,0.919,3398.3,3398.2,3.2078]
[1735457066936,0.919,3398.3,3397.9,6.93304491]
[1735457066937,0.6242,3398.3,3397.9,4.6138644]
[1735457067121,0.29483,3398.0,3397.9,4.6138644]
[1735457067619,0.94053,3398.0,3397.9,4.6138644]
[1735457068228,0.94053,3398.0,3397.6,12.46978608]
[1735457068229,0.6457,3398.0,3397.6,3.2078]
[1735457068427,0.29486,3397.7,3397.6,3.2078]
[1735457070927,0.29487,3397.6,3397.4,0.29488]
[1735457071126,0.91147,3397.6,3397.4,0.29488]
[1735457071626,0.91147,3397.6,3397.3,4.60636181]
[1735457071627,0.29487,3397.5,3397.3,0.29488]
[1735457071824,0.29487,3397.5,3397.2,5.89366181]
[1735457072024,0.29487,3397.5,3397.4,0.29488]
[1735457072226,0.29489,3397.3,3397.2,6.18856181]
[1735457072829,0.29489,3397.3,3397.2,1.5822]
[1735457073328,0.29489,3397.4,3397.3,0.29489]
[1735457073926,0.29489,3397.3,3397.2,1.58219]
[1735457074126,0.29489,3397.4,3397.3,0.29489]
[1735457074326,0.93798,3397.5,3397.4,0.29488]
[1735457074525,0.29488,3397.5,3397.4,0.29488]
[1735457075529,0.6076,3397.9,3397.2,1.2873]
[1735457075831,0.29486,3397.7,3397.6,0.29486]
[1735457076627,0.29487,3397.6,3397.5,0.29487]
[1735457076930,0.29489,3397.3,3397.2,0.2949]
[1735457077129,1.35173,3397.8,3397.1,3.8578]
[1735457077328,0.2949,3397.3,3397.2,0.2949]
[1735457079534,3.2078,3397.7,3397.1,0.65]
[1735457079737,0.29489,3397.4,3397.3,0.29489]
[1735457081238,0.2949,3397.3,3397.2,0.2949]
[1735457081440,0.29489,3397.4,3397.3,0.29489]
[1735457082247,0.2949,3397.3,3397.2,0.29489]
[1735457083243,5.57373768,3397.7,3397.1,0.65]
[1735457083445,0.29489,3397.3,3397.2,0.29489]
[1735457086341,0.2949,3397.2,3396.9,3.50272]
[1735457086540,0.29492,3397.0,3396.9,3.2078]
[1735457087037,0.29492,3397.0,3396.9,3.50273]
[1735457087239,0.29492,3397.0,3396.9,3.2078]
[1735457087842,0.29492,3397.0,3396.9,3.50273]
[1735457088244,0.29492,3397.0,3396.9,3.2078]
[1735457088545,0.29492,3397.0,3396.8,0.6518]
[1735457088746,0.29492,3397.0,3396.9,0.93783]
[1735457088947,0.29492,3397.0,3396.9,0.6429]
[1735457094653,0.6318,3397.1,3396.8,0.6006]
[1735457094841,0.29493,3396.9,3396.8,0.6006]
[1735457095953,0.29492,3397.0,3396.8,0.89553]
[1735457096253,0.29493,3396.9,3396.8,0.89553]
[1735457100750,0.29491,3397.2,3397.1,0.2949]
[1735457100943,2.58826679,3397.3,3397.2,0.9513]
[1735457102558,0.29492,3397.0,3396.9,0.29492]
[1735457102854,0.29492,3397.0,3396.9,0.95132]
[1735457103458,0.29492,3397.0,3396.9,0.6564]
[1735457104865,0.29492,3397.0,3396.9,0.95133]
[1735457106062,0.29492,3397.0,3396.9,0.6564]
[1735457106558,0.29492,3397.0,3396.9,0.95133]
[1735457107467,0.29492,3397.0,3396.9,0.6564]
[1735457110063,0.29492,3397.0,3396.9,0.95133]
[1735457110963,2.29336679,3397.3,3396.9,0.6564]
[1735457111163,3.2078,3397.4,3397.1,1.04226679]
[1735457111464,0.29486,3397.7,3397.5,0.29487]
[1735457111962,0.29486,3397.7,3397.4,1.2718]
[1735457112265,0.29486,3397.7,3397.6,0.29486]
[1735457112962,0.29485,3397.8,3397.7,0.29486]
[1735457113367,0.29485,3397.8,3397.6,0.29486]
[1735457113966,0.29485,3397.8,3397.7,0.29486]
[1735457114171,1.2906,3397.9,3397.4,5.87816181]
[1735457114468,0.95754,3397.9,3397.8,0.29485]
[1735457115068,0.29486,3397.7,3397.6,0.29486]
[1735457116971,0.29485,3397.8,3397.6,0.29486]
[1735457118075,0.29485,3397.8,3397.5,4.60636181]
[1735457118273,0.29485,3397.8,3397.7,0.29486]
[1735457118663,0.6627,3397.9,3397.5,4.60636181]
[1735457118870,3.2078,3398.0,3397.9,0.29484]
[1735457119272,3.2078,3398.0,3397.5,4.60636181]
[1735457119577,0.29484,3397.9,3397.8,0.29485]
[1735457119774,0.91624,3397.9,3397.8,0.29485]
[1735457120078,3.50263,3398.0,3397.8,0.29485]
[1735457120272,3.50263,3398.0,3397.9,0.93604]
[1735457121469,0.6214,3398.2,3397.9,0.6412]
[1735457121672,0.6214,3398.2,3398.0,0.29483]
[1735457121872,0.29483,3398.0,3397.9,0.93603]
[1735457122176,0.29483,3398.1,3397.9,0.6412]
[1735457122370,0.6214,3398.2,3398.0,3.2078]
[1735457122777,0.6214,3398.2,3397.9,0.6412]
[1735457123378,0.29483,3398.0,3397.9,0.93603]
[1735457124877,0.6214,3398.2,3397.6,4.90122181]
[1735457125073,0.29486,3397.7,3397.6,5.50082181]
[1735457125482,0.29485,3397.8,3397.6,5.50082181]
[1735457126473,0.29485,3397.8,3397.6,0.89446]
[1735457126873,0.6317,3398.1,3397.6,0.5996]
[1735457127073,0.29486,3397.7,3397.6,0.89446]
[1735457133182,0.29486,3397.7,3397.6,0.29486]
[1735457135280,1.55795,3397.8,3397.7,0.29486]
[1735457148793,0.29485,3397.8,3397.7,0.29486]
[1735457151094,1.04178342,3397.9,3397.7,0.29486]
[1735457151298,0.29485,3397.8,3397.7,0.29486]
[1735457155504,0.29485,3397.8,3397.7,4.90122181]
[1735457156805,0.29485,3397.8,3397.7,4.60636181]
[1735457157394,0.29485,3397.8,3397.7,12.76363656]
[1735457159403,0.29485,3397.8,3397.7,13.05849656]
[1735457162306,1.33663342,3397.9,3397.8,0.29485]
[1735457163004,1.33663342,3397.9,3397.8,13.05848656]
[1735457167307,4.6197323,3398.0,3397.8,12.76363656]
[1735457167519,4.9145623,3398.0,3397.9,0.94364]
[1735457168018,0.29483,3398.0,3397.9,6.77423165]
[1735457169320,0.29483,3398.0,3397.9,13.70727656]
[1735457170316,1.33661342,3398.0,3397.9,13.70727656]
[1735457172005,5.95634572,3398.0,3397.9,13.70727656]
[1735457172315,5.66151572,3398.0,3397.9,13.70727656]
[1735457172618,5.95634572,3398.0,3397.9,13.70727656]
[1735457173409,1.33661342,3398.0,3397.9,13.41243656]
[1735457173612,1.33661342,3398.0,3397.9,12.76363656]
[1735457173811,1.96591342,3398.0,3397.9,12.76363656]
[1735457174116,1.96591342,3398.0,3397.9,6.93304491]
[1735457174424,6.58564572,3398.0,3397.9,4.6255971]
[1735457177313,5.95634572,3398.0,3397.9,4.9204371]
[1735457177515,5.95634572,3398.0,3397.9,5.5193371]
[1735457177915,5.95634572,3398.0,3397.9,6.43314599]
[1735457178815,4.6197323,3398.0,3397.9,6.72798599]
[1735457179016,4.9145623,3398.0,3397.9,6.72798599]
[1735457180222,0.29483,3398.0,3397.9,13.6610309]
[1735457180920,0.29483,3398.0,3397.9,13.3661909]
[1735457182223,4.9145623,3398.0,3397.9,6.43314599]
[1735457183226,0.29483,3398.0,3397.9,6.43314599]
[1735457184330,4.6197323,3398.0,3397.9,6.43314599]
[1735457184625,4.9145623,3398.0,3397.9,6.72798599]
[1735457185427,0.29483,3398.0,3397.9,13.6610309]
[1735457186530,0.29483,3398.0,3397.9,13.6610209]
[1735457189929,0.29482,3398.1,3398.0,0.29482]
[1735457190428,0.29482,3398.1,3398.0,0.94422]
[1735457190628,0.29482,3398.1,3398.0,6.77846599]
[1735457191834,0.29482,3398.1,3398.0,6.48364599]
[1735457193739,0.95522,3398.1,3398.0,5.27113851]
[1735457194238,0.95522,3398.1,3398.0,4.62173851]
[1735457196336,5.5749523,3398.1,3398.0,4.62173851]
[1735457198240,8.7827523,3398.1,3398.0,4.62173851]
[1735457198538,5.5749523,3398.1,3398.0,4.62173851]
[1735457198936,8.7827523,3398.1,3398.0,4.62173851]
[1735457199940,5.5749523,3398.1,3398.0,4.62173851]
[1735457200141,8.7827523,3398.1,3398.0,4.62173851]
[1735457204842,5.5749523,3398.1,3398.0,4.62173851]
[1735457205745,6.61673572,3398.1,3398.0,4.62173851]
[1735457206450,0.29483,3398.0,3397.9,5.22063851]
[1735457207553,4.93766842,3398.0,3397.9,5.22063851]
[1735457209946,4.93766842,3398.0,3397.9,11.05390325]
[1735457217558,0.29483,3398.0,3397.9,13.36520965]
[1735457218054,4.64283842,3398.1,3398.0,0.29483]
[1735457219446,4.93765842,3398.2,3398.0,6.12809474]
[1735457219647,5.97944184,3398.2,3398.1,0.6563]
[1735457219853,5.97944184,3398.2,3398.1,1.3143]
[1735457220957,1.33660342,3398.2,3398.1,11.76987206]
[1735457221759,5.97944184,3398.2,3398.1,5.93660732]
[1735457223753,1.33660342,3398.2,3398.1,7.14610865]
[1735457224555,0.29482,3398.2,3398.1,7.14610865]
[1735457225064,4.64283842,3398.3,3398.2,0.29481]
[1735457225257,1.64013842,3398.3,3398.2,1.33659342]
[1735457225464,5.73513611,3398.5,3398.4,0.2948]
[1735457225760,5.73513611,3398.5,3398.4,1.33658342]
[1735457226465,3.2078,3398.6,3398.5,0.29479]
[1735457227367,0.29479,3398.5,3398.4,15.09379473]
[1735457227865,0.29479,3398.5,3398.3,9.55678608]
[1735457228364,3.2078,3398.6,3398.3,9.26198608]
[1735457228567,3.50258,3398.6,3398.4,0.74069]
[1735457228758,0.29479,3398.5,3398.4,0.74069]
[1735457228959,3.50258,3398.6,3398.5,0.29479]
[1735457229161,3.2078,3398.6,3398.5,0.29479]
[1735457229866,0.29473,3399.2,3398.6,0.29478]
[1735457230167,0.29473,3399.2,3399.1,0.29473]
[1735457235870,0.6226,3399.4,3399.0,3.2078]
[1735457236168,0.6226,3399.4,3399.0,4.24958342]
[1735457236169,0.91732,3399.4,3399.0,4.24958342]
[1735457236363,1.2733,3399.6,3399.2,1.04178342]
[1735457236564,0.2947,3399.5,3399.4,0.2947]
[1735457236863,0.2947,3399.5,3399.2,1.04178342]
[1735457236864,1.568,3399.6,3399.5,0.2947]
[1735457242367,1.2733,3399.6,3399.4,3.2078]
[1735457242565,0.2947,3399.5,3399.4,3.5025]
[1735457243570,1.2733,3399.6,3399.4,3.2078]
[1735457243758,1.568,3399.6,3399.5,0.2947]
[1735457245670,0.2947,3399.5,3399.4,3.2078]
[1735457245867,0.29474,3399.1,3399.0,3.2078]
[1735457246168,0.29475,3398.9,3398.7,7.21075166]
[1735457246463,1.33653342,3398.9,3398.7,7.21075166]
[1735457246871,0.29476,3398.8,3398.7,0.29476]
[1735457247271,0.29477,3398.7,3398.6,3.2078]
[1735457247874,0.29476,3398.8,3398.7,0.29477]
[1735457249372,0.92616,3398.8,3398.7,0.29477]
[1735457251479,0.29477,3398.7,3398.6,3.2078]
[1735457251774,1.33655342,3398.7,3398.6,3.2078]
[1735457251974,0.29479,3398.5,3398.4,0.29479]
[1735457252768,0.2948,3398.3,3398.2,0.2948]
[1735457252972,0.29481,3398.3,3398.2,0.29481]
[1735457253168,1.2737,3398.4,3398.3,0.2948]
[1735457253169,1.5685,3398.4,3398.3,0.2948]
[1735457253369,0.29481,3398.3,3398.2,0.29481]
[1735457253569,1.2737,3398.4,3398.0,3.2078]
[1735457253773,1.2737,3398.4,3398.3,0.2948]
[1735457255678,1.5685,3398.4,3398.3,0.2948]
[1735457256373,1.2737,3398.4,3398.1,0.29482]
[1735457256573,1.2737,3398.4,3398.0,3.2078]
[1735457256574,1.33659342,3398.3,3398.2,0.29481]
[1735457256773,1.04178342,3398.3,3398.2,0.29481]
[1735457258976,0.29482,3398.2,3398.0,0.29482]
[1735457259174,0.29482,3398.2,3398.1,0.29482]
[1735457259374,1.04178342,3398.3,3398.1,0.29482]
[1735457259668,1.04178342,3398.3,3398.2,0.29481]
[1735457259669,1.33659342,3398.3,3398.2,0.29481]
[1735457261979,1.33659342,3398.3,3398.1,0.29482]
[1735457262482,1.33659342,3398.3,3398.2,0.29481]
[1735457262879,1.04178342,3398.3,3398.2,0.29481]
[1735457263581,1.5685,3398.4,3398.2,0.29481]
[1735457263886,1.2737,3398.4,3398.2,0.29481]
[1735457264183,0.7589,3398.3,3398.2,0.29481]
[1735457265074,0.29482,3398.2,3398.1,0.29482]
[1735457271876,0.4641,3398.3,3398.0,1.04178342]
[1735457272081,1.2737,3398.4,3398.3,0.2948]
[1735457276287,1.5685,3398.4,3398.3,0.2948]
[1735457281792,1.2737,3398.4,3398.3,0.2948]
[1735457285201,0.29479,3398.5,3398.4,0.2948]
[1735457289698,3.2078,3398.6,3398.5,0.29479]
[1735457289894,1.66467,3398.7,3398.6,0.29478]
[1735457290800,5.31463,3398.7,3398.3,4.6106611]
[1735457290997,1.33658342,3398.4,3398.3,1.7918611]
[1735457291301,1.33658342,3398.4,3398.3,6.91599166]
[1735457292396,1.04178342,3398.4,3398.0,10.12379166]
[1735457292603,0.29482,3398.1,3398.0,10.41862166]
[1735457293701,0.29482,3398.1,3398.0,16.30642178]
[1735457293897,0.73912,3398.1,3398.0,16.30642178]
[1735457294202,1.62912,3398.1,3398.0,16.30642178]
[1735457294395,1.62912,3398.1,3398.0,9.39043012]
[1735457294897,1.62912,3398.1,3398.0,5.88780012]
[1735457296703,1.62912,3398.1,3398.0,12.81939816]
[1735457297603,0.29483,3398.0,3397.9,6.93159804]
[1735457297902,1.33661342,3398.0,3397.9,6.93159804]
[1735457299200,0.29485,3397.8,3397.7,6.93159804]
[1735457299511,1.33663342,3397.8,3397.7,6.93159804]
[1735457300503,1.33663342,3397.8,3397.7,6.23209804]
[1735457300804,0.29487,3397.5,3397.4,6.23209804]
[1735457301006,1.33665342,3397.5,3397.4,6.23209804]
[1735457302204,0.2949,3397.2,3397.1,3.2078]
[1735457303699,0.7307,3397.2,3397.1,3.2078]
[1735457307507,0.4358,3397.2,3396.9,0.29493]
[1735457307709,0.29492,3397.0,3396.9,0.29493]
[1735457311613,0.4358,3397.2,3397.0,0.29491]
[1735457311614,0.29491,3397.1,3397.0,0.29491]
[1735457314816,0.4358,3397.2,3396.8,0.4457]
[1735457315018,0.29493,3397.0,3396.9,0.29492]
[1735457315211,1.04178342,3397.1,3396.8,0.4457]
[1735457315517,0.29493,3396.9,3396.8,0.4457]
[1735457317415,0.29493,3396.9,3396.8,0.74063]
[1735457319122,0.29489,3397.3,3397.1,0.2949]
[1735457319319,0.29491,3397.2,3397.1,0.2949]
[1735457323218,0.29491,3397.1,3397.0,0.29491]
[1735457323519,1.95158342,3397.4,3396.9,0.29492]
[1735457323520,0.29492,3397.0,3396.9,0.29492]
[1735457326622,0.29491,3397.1,3397.0,0.29491]
[1735457326826,0.2949,3397.2,3397.1,0.2949]
[1735457328325,3.2078,3397.9,3397.1,3.2078]
[1735457328531,0.29486,3397.7,3397.6,0.29486]
[1735457330127,0.29487,3397.6,3397.5,0.29487]
[1735457333031,1.33664342,3397.7,3397.6,0.29486]
[1735457338735,0.29487,3397.6,3397.5,0.29487]
[1735457338936,0.4481,3397.6,3397.4,0.4446]
[1735457339139,1.33665342,3397.5,3397.4,0.73948]
[1735457345048,0.29487,3397.5,3397.4,6.61611594]
[1735457353854,0.74297,3397.6,3397.5,0.29487]
[1735457370061,0.74297,3397.6,3397.5,6.17438169]
[1735457372573,0.74297,3397.6,3397.5,12.81594803]
[1735457374361,0.74297,3397.6,3397.5,13.11081803]
[1735457376563,0.74297,3397.6,3397.5,6.17438169]
[1735457381862,0.74297,3397.6,3397.5,5.87951169]
[1735457383277,0.74297,3397.6,3397.5,6.17438169]
[1735457386771,0.74297,3397.6,3397.5,13.11977639]
[1735457387070,0.29487,3397.6,3397.5,13.11977639]
[1735457387669,5.73513611,3397.8,3397.7,0.29486]
[1735457388067,10.10207611,3397.9,3397.8,0.29485]
[1735457388266,0.29486,3397.7,3397.6,0.29486]
[1735457388972,0.29486,3397.7,3397.6,15.43635777]
[1735457390368,0.29486,3397.7,3397.6,6.17437169]
[1735457390675,0.29486,3397.7,3397.6,5.87951169]
[1735457391174,0.29487,3397.5,3397.4,0.73948]
[1735457391366,1.04178342,3397.8,3397.4,0.4446]
[1735457391564,0.29487,3397.6,3397.5,0.29487]
[1735457392366,0.29487,3397.6,3397.5,13.11745801]
[1735457392968,1.04178342,3397.8,3397.5,12.82258801]
[1735457393172,1.33663342,3397.8,3397.7,0.29486]
[1735457394769,1.33663342,3397.8,3397.7,13.11646642]
[1735457397072,1.33663342,3397.8,3397.7,12.82160642]
[1735457398276,0.29486,3397.7,3397.6,0.29486]
[1735457399279,0.29486,3397.7,3397.6,6.17424072]
[1735457400072,0.29486,3397.7,3397.6,5.87938072]
[1735457400377,0.29486,3397.7,3397.6,12.82011915]
[1735457400579,0.71696,3397.7,3397.6,12.82011915]
[1735457401077,0.71696,3397.7,3397.6,5.87938072]
[1735457404285,0.71696,3397.7,3397.6,5.17998072]
[1735457405277,0.2949,3397.2,3397.1,0.42]
[1735457405476,1.04178342,3397.2,3396.9,6.94073843]
[1735457405679,1.33670342,3397.0,3396.9,6.94073843]
[1735457406779,1.04178342,3397.0,3396.8,3.6564]
[1735457406990,0.29493,3396.9,3396.8,3.6564]
[1735457407291,0.29493,3396.9,3396.8,3.2078]
[1735457407481,0.73513,3396.9,3396.8,3.2078]
[1735457408184,0.73513,3396.9,3396.6,7.38933843]
[1735457408185,0.4402,3396.9,3396.6,7.38933843]
[1735457408384,1.33672342,3396.7,3396.6,0.4486]
[1735457410890,0.29494,3396.7,3396.6,0.4486]
[1735457411584,0.29493,3396.9,3396.8,0.29493]
[1735457412287,1.04178342,3397.0,3396.7,0.75664]
[1735457412690,0.29493,3396.9,3396.7,0.75664]
[1735457413188,1.33670342,3397.0,3396.8,0.29493]
[1735457414490,0.29493,3396.9,3396.7,0.4617]
[1735457414689,0.29493,3396.9,3396.7,0.75664]
[1735457415587,0.29493,3396.9,3396.8,0.29493]
[1735457415792,0.29492,3397.0,3396.8,0.29493]
[1735457416100,0.29487,3397.6,3396.8,9.24958342]
[1735457416393,0.29487,3397.6,3397.1,0.29491]
[1735457416591,0.29487,3397.6,3397.4,0.29488]
[1735457416792,0.29487,3397.6,3397.5,0.4381]
[1735457418898,1.04178342,3397.7,3397.2,4.62075671]
[1735457419092,0.29489,3397.3,3397.2,4.62075671]
[1735457421099,0.2949,3397.2,3397.1,0.4484]
[1735457421802,1.33668342,3397.2,3397.1,0.4484]
[1735457423999,1.33668342,3397.2,3397.1,0.74331]
[1735457425706,1.04178342,3397.2,3397.1,0.74331]
[1735457426905,1.33668342,3397.2,3397.1,0.74331]
[1735457427901,1.33668342,3397.2,3397.1,0.4484]
[1735457430706,0.29493,3396.9,3396.8,8.12348671]
[1735457431006,1.33671342,3396.9,3396.8,8.12348671]
[1735457432005,1.33671342,3396.9,3396.8,7.82855671]
[1735457432201,1.33671342,3396.9,3396.8,3.2078]
[1735457432804,2.21221342,3396.9,3396.8,3.2078]
[1735457433507,1.91728342,3396.9,3396.4,3.93407]
[1735457433807,1.33674342,3396.5,3396.4,3.2078]
[1735457435812,1.33674342,3396.5,3396.4,3.50277]
[1735457436209,1.33674342,3396.5,3396.4,3.2078]
[1735457436808,1.33674342,3396.5,3396.4,3.50277]
[1735457437613,1.33674342,3396.5,3396.4,3.2078]
[1735457437814,1.33674342,3396.5,3396.4,3.50277]
[1735457438015,1.33674342,3396.5,3396.4,3.2078]
[1735457444324,0.29498,3396.3,3396.2,0.4313]
[1735457444622,1.33676342,3396.3,3396.2,0.4313]
[1735457445026,2.18576342,3396.3,3396.2,0.4313]
[1735457447324,0.295,3396.1,3396.0,3.2078]
[1735457447525,0.295,3396.1,3396.0,3.6699]
[1735457449526,1.33678342,3396.1,3396.0,3.6699]
[1735457453331,1.33678342,3396.1,3396.0,3.2078]
[1735457453530,1.33678342,3396.1,3396.0,3.9424]
[1735457456024,1.04178342,3396.1,3396.0,3.9424]
[1735457456530,1.33678342,3396.1,3396.0,3.9424]
[1735457458227,1.33678342,3396.1,3396.0,0.7346]
[1735457460027,1.04178342,3396.3,3396.0,0.4396]
[1735457460226,1.33676342,3396.3,3396.2,0.29499]
[1735457460628,1.33676342,3396.3,3396.2,0.71819]
[1735457461727,1.33676342,3396.3,3396.2,0.4232]
[1735457464033,1.33676342,3396.3,3396.2,0.71819]
[1735457464934,1.33676342,3396.3,3396.2,0.4232]
[1735457465132,4.119,3396.7,3396.2,0.4232]
[1735457465333,0.29498,3396.3,3396.2,0.4232]
[1735457466438,0.29499,3396.2,3396.1,0.29499]
[1735457466638,1.33677342,3396.2,3396.1,0.29499]
[1735457466842,0.295,3396.1,3396.0,0.4396]
[1735457467440,0.295,3396.1,3396.0,0.7346]
[1735457471142,1.50488342,3396.2,3396.0,0.4396]
[1735457471437,1.79987342,3396.2,3396.1,0.295]
[1735457477145,0.295,3396.1,3396.0,4.62075671]
[1735457477334,0.7523,3396.1,3396.0,4.62075671]
[1735457477539,0.4573,3396.1,3395.9,6.93113507]
[1735457477741,1.33678342,3396.0,3395.9,6.93113507]
[1735457479040,1.04178342,3396.0,3395.7,4.63225135]
[1735457479241,1.33680342,3395.8,3395.7,4.63225135]
[1735457480240,4.54460342,3395.8,3395.7,4.63225135]
[1735457481442,0.29503,3395.7,3395.6,4.63225135]
[1735457481645,1.67663,3395.7,3395.6,4.63225135]
[1735457483149,1.67663,3395.7,3395.5,5.08645135]
[1735457483150,1.3816,3395.7,3395.5,5.08645135]
[1735457483345,1.33682342,3395.6,3395.5,4.63225135]
[1735457484753,0.29505,3395.5,3395.4,4.63225135]
[1735457484955,1.33683342,3395.5,3395.4,4.63225135]
[1735457485845,0.29506,3395.4,3395.3,4.92731135]
[1735457486451,0.29506,3395.4,3395.3,4.63225135]
[1735457486847,0.29506,3395.4,3395.3,4.92731135]
[1735457488153,0.29506,3395.4,3395.3,0.29506]
[1735457488856,1.33683342,3395.5,3395.3,0.29506]